[Event "Titled Tuesday Blitz October 11 Late 2022"]
[White "Hemam, Moulaye Brahim"]
[Black "Barash, Anton"]
[WhiteFideId "19600054"]
[BlackFideId "30935229"]
[WhiteElo "2088"]
[BlackElo "2279"]
[Result "0-1"]
[Round "10"]
[TimeControl "180+1"]
[Date "2022.10.12"]
[WhiteClock "0:00:04"]
[BlackClock "0:00:08"]

1. e4 {[%clk 0:02:59]}  e6 {[%clk 0:02:58]} 2. d4 {[%clk 0:02:59]}  d5 {[%clk 0:02:57]} 3. Nc3 {[%clk 0:02:59]}  Bb4 {[%clk 0:02:57]} 4. e5 {[%clk 0:02:55]}  c5 {[%clk 0:02:57]} 5. Bd2 {[%clk 0:02:53]}  Ne7 {[%clk 0:02:57]} 6. Nb5 {[%clk 0:02:52]}  Bxd2+ {[%clk 0:02:55]} 7. Qxd2 {[%clk 0:02:53]}  O-O {[%clk 0:02:56]} 8. f4 {[%clk 0:02:52]}  Bd7 {[%clk 0:02:52]} 9. Nf3 {[%clk 0:02:48]}  Bxb5 {[%clk 0:02:44]} 10. Bxb5 {[%clk 0:02:45]}  a6 {[%clk 0:02:40]} 11. Be2 {[%clk 0:02:44]}  cxd4 {[%clk 0:02:35]} 12. Nxd4 {[%clk 0:02:43]}  Nbc6 {[%clk 0:02:35]} 13. O-O-O {[%clk 0:02:42]}  Rc8 {[%clk 0:02:28]} 14. Kb1 {[%clk 0:02:42]}  Qb6 {[%clk 0:02:25]} 15. Nxc6 {[%clk 0:02:26]}  bxc6 {[%clk 0:02:21]} 16. Qd4 {[%clk 0:02:16]}  c5 {[%clk 0:02:21]} 17. Qa4 {[%clk 0:02:16]}  Rb8 {[%clk 0:02:14]} 18. b3 {[%clk 0:02:13]}  c4 {[%clk 0:02:07]} 19. Rhf1 {[%clk 0:02:01]}  Nf5 {[%clk 0:01:51]} 20. Rf3 {[%clk 0:01:56]}  Nd4 {[%clk 0:01:45]} 21. Re1 {[%clk 0:01:23]}  Nxf3 {[%clk 0:01:37]} 22. Bxf3 {[%clk 0:01:24]}  Rfc8 {[%clk 0:01:29]} 23. f5 {[%clk 0:01:13]}  cxb3 {[%clk 0:01:16]} 24. axb3 {[%clk 0:01:07]}  Qc5 {[%clk 0:01:06]} 25. Re2 {[%clk 0:00:59]}  exf5 {[%clk 0:01:04]} 26. Qd7 {[%clk 0:00:52]}  Rd8 {[%clk 0:00:34]} 27. Qxf5 {[%clk 0:00:43]}  a5 {[%clk 0:00:34]} 28. e6 {[%clk 0:00:42]}  fxe6 {[%clk 0:00:33]} 29. Qxe6+ {[%clk 0:00:41]}  Kh8 {[%clk 0:00:33]} 30. Qa6 {[%clk 0:00:24]}  Ra8 {[%clk 0:00:30]} 31. Qb7 {[%clk 0:00:20]}  a4 {[%clk 0:00:25]} 32. b4 {[%clk 0:00:20]}  Qg1+ {[%clk 0:00:22]} 33. Ka2 {[%clk 0:00:19]}  a3 {[%clk 0:00:15]} 34. Bxd5 {[%clk 0:00:18]}  Qd4 {[%clk 0:00:15]} 35. c3 {[%clk 0:00:06]}  Qxd5+ {[%clk 0:00:15]} 36. Qxd5 {[%clk 0:00:06]}  Rxd5 {[%clk 0:00:16]} 37. c4 {[%clk 0:00:05]}  Rd4 {[%clk 0:00:16]} 38. Rc2 {[%clk 0:00:05]}  Rc8 {[%clk 0:00:13]} 39. Kb3 {[%clk 0:00:05]}  Rd3+ {[%clk 0:00:11]} 40. Ka4 {[%clk 0:00:04]}  a2 {[%clk 0:00:08]} 0-1


[Site "https://www.chess.com"]

[Event "Titled Tuesday Blitz October 11 Late 2022"]
[White "Holt, Conrad"]
[Black "Melkumyan, Hrant"]
[WhiteFideId "2034387"]
[BlackFideId "13302485"]
[WhiteElo "2592"]
[BlackElo "2604"]
[Result "1/2-1/2"]
[Round "10"]
[TimeControl "180+1"]
[Date "2022.10.11"]
[WhiteClock "0:00:09"]
[BlackClock "0:00:03"]

1. d4 {[%clk 0:02:53]}  Nf6 {[%clk 0:02:59]} 2. c4 {[%clk 0:02:53]}  g6 {[%clk 0:03:00]} 3. Nc3 {[%clk 0:02:54]}  Bg7 {[%clk 0:03:00]} 4. e4 {[%clk 0:02:54]}  d6 {[%clk 0:03:01]} 5. Nf3 {[%clk 0:02:54]}  O-O {[%clk 0:03:01]} 6. h3 {[%clk 0:02:54]}  c5 {[%clk 0:02:59]} 7. d5 {[%clk 0:02:54]}  e6 {[%clk 0:02:58]} 8. Bd3 {[%clk 0:02:54]}  exd5 {[%clk 0:02:57]} 9. cxd5 {[%clk 0:02:54]}  Re8 {[%clk 0:02:46]} 10. O-O {[%clk 0:02:54]}  c4 {[%clk 0:02:46]} 11. Bc2 {[%clk 0:02:53]}  Nbd7 {[%clk 0:02:46]} 12. Re1 {[%clk 0:02:48]}  Nc5 {[%clk 0:02:46]} 13. Bf4 {[%clk 0:02:45]}  Qb6 {[%clk 0:02:32]} 14. Rb1 {[%clk 0:02:42]}  Bd7 {[%clk 0:02:28]} 15. e5 {[%clk 0:02:38]}  dxe5 {[%clk 0:02:16]} 16. Nxe5 {[%clk 0:02:34]}  Qa6 {[%clk 0:02:09]} 17. Qd4 {[%clk 0:02:23]}  Rac8 {[%clk 0:02:05]} 18. Qxc4 {[%clk 0:02:19]}  b5 {[%clk 0:02:00]} 19. Qb4 {[%clk 0:02:16]}  Qb7 {[%clk 0:01:47]} 20. Nxd7 {[%clk 0:02:07]}  Ncxd7 {[%clk 0:01:42]} 21. Rxe8+ {[%clk 0:02:00]}  Nxe8 {[%clk 0:01:42]} 22. a4 {[%clk 0:01:51]}  Rc4 {[%clk 0:01:14]} 23. Qe7 {[%clk 0:01:48]}  Rxf4 {[%clk 0:01:14]} 24. Qxe8+ {[%clk 0:01:48]}  Nf8 {[%clk 0:01:15]} 25. Qxb5 {[%clk 0:01:43]}  Qc7 {[%clk 0:01:15]} 26. g3 {[%clk 0:01:40]}  Rf6 {[%clk 0:01:06]} 27. Rd1 {[%clk 0:01:34]}  Rb6 {[%clk 0:01:05]} 28. d6 {[%clk 0:01:29]}  Rxd6 {[%clk 0:00:51]} 29. Rxd6 {[%clk 0:01:29]}  Qxd6 {[%clk 0:00:51]} 30. Bb3 {[%clk 0:01:29]}  Bd4 {[%clk 0:00:48]} 31. Kg2 {[%clk 0:01:22]}  Kg7 {[%clk 0:00:41]} 32. Qc4 {[%clk 0:01:19]}  Ne6 {[%clk 0:00:37]} 33. Nb5 {[%clk 0:01:16]}  Qd7 {[%clk 0:00:27]} 34. Nxd4 {[%clk 0:01:08]}  Nxd4 {[%clk 0:00:28]} 35. Qd5 {[%clk 0:00:59]}  Qxd5+ {[%clk 0:00:22]} 36. Bxd5 {[%clk 0:01:00]}  a5 {[%clk 0:00:23]} 37. f4 {[%clk 0:00:54]}  Kf6 {[%clk 0:00:18]} 38. Kf2 {[%clk 0:00:55]}  Ke7 {[%clk 0:00:19]} 39. g4 {[%clk 0:00:52]}  f6 {[%clk 0:00:18]} 40. Ke3 {[%clk 0:00:52]}  Nc2+ {[%clk 0:00:15]} 41. Kd3 {[%clk 0:00:51]}  Nb4+ {[%clk 0:00:11]} 42. Kc4 {[%clk 0:00:51]}  Kd6 {[%clk 0:00:12]} 43. Be4 {[%clk 0:00:51]}  Na6 {[%clk 0:00:08]} 44. Kb5 {[%clk 0:00:48]}  Nc5 {[%clk 0:00:08]} 45. Bc2 {[%clk 0:00:48]}  Ne6 {[%clk 0:00:08]} 46. Kxa5 {[%clk 0:00:46]}  Nxf4 {[%clk 0:00:09]} 47. Kb6 {[%clk 0:00:43]}  Nd5+ {[%clk 0:00:08]} 48. Kb7 {[%clk 0:00:43]}  Nb4 {[%clk 0:00:08]} 49. Bb1 {[%clk 0:00:36]}  Kc5 {[%clk 0:00:07]} 50. h4 {[%clk 0:00:33]}  Nc6 {[%clk 0:00:06]} 51. Bxg6 {[%clk 0:00:26]}  hxg6 {[%clk 0:00:05]} 52. h5 {[%clk 0:00:26]}  gxh5 {[%clk 0:00:03]} 53. gxh5 {[%clk 0:00:26]}  f5 {[%clk 0:00:03]} 54. h6 {[%clk 0:00:25]}  f4 {[%clk 0:00:04]} 55. a5 {[%clk 0:00:11]}  f3 {[%clk 0:00:04]} 56. h7 {[%clk 0:00:07]}  Nd8+ {[%clk 0:00:04]} 57. Kb8 {[%clk 0:00:05]}  Nf7 {[%clk 0:00:05]} 58. a6 {[%clk 0:00:06]}  f2 {[%clk 0:00:06]} 59. a7 {[%clk 0:00:07]}  f1=Q {[%clk 0:00:07]} 60. a8=Q {[%clk 0:00:08]}  Qf4+ {[%clk 0:00:07]} 61. Ka7 {[%clk 0:00:08]}  Qa4+ {[%clk 0:00:06]} 62. Kb8 {[%clk 0:00:08]}  Qe8+ {[%clk 0:00:06]} 63. Ka7 {[%clk 0:00:08]}  Qa4+ {[%clk 0:00:06]} 64. Kb8 {[%clk 0:00:09]}  Qf4+ {[%clk 0:00:06]} 65. Ka7 {[%clk 0:00:09]}  Qa4+ {[%clk 0:00:03]} 1/2-1/2


[Site "https://www.chess.com"]

[Event "Titled Tuesday Blitz October 11 Late 2022"]
[White "Izuzquiza Gonzalez, Javier"]
[Black "Aung Thant Zin"]
[WhiteFideId "3101029"]
[BlackFideId "13000063"]
[WhiteElo "2034"]
[BlackElo "2278"]
[Result "0-1"]
[Round "10"]
[TimeControl "180+1"]
[Date "2022.10.12"]
[WhiteClock "0:00:52"]
[BlackClock "0:01:46"]

1. d4 {[%clk 0:03:00]}  Nf6 {[%clk 0:02:59]} 2. c4 {[%clk 0:03:01]}  e6 {[%clk 0:03:00]} 3. Nf3 {[%clk 0:03:00]}  b6 {[%clk 0:02:59]} 4. g3 {[%clk 0:03:00]}  Ba6 {[%clk 0:02:58]} 5. Qc2 {[%clk 0:02:59]}  Be7 {[%clk 0:02:56]} 6. Bg2 {[%clk 0:02:59]}  c6 {[%clk 0:02:56]} 7. O-O {[%clk 0:02:58]}  O-O {[%clk 0:02:54]} 8. Rd1 {[%clk 0:02:57]}  d5 {[%clk 0:02:53]} 9. b3 {[%clk 0:02:56]}  Nbd7 {[%clk 0:02:50]} 10. Nbd2 {[%clk 0:02:51]}  Rc8 {[%clk 0:02:49]} 11. e4 {[%clk 0:02:49]}  dxe4 {[%clk 0:02:47]} 12. Nxe4 {[%clk 0:02:49]}  Nxe4 {[%clk 0:02:46]} 13. Qxe4 {[%clk 0:02:50]}  Nf6 {[%clk 0:02:45]} 14. Qc2 {[%clk 0:02:51]}  Qc7 {[%clk 0:02:38]} 15. Bf4 {[%clk 0:02:50]}  Qb7 {[%clk 0:02:37]} 16. Ne5 {[%clk 0:02:42]}  Qa8 {[%clk 0:02:37]} 17. a3 {[%clk 0:02:16]}  Bb7 {[%clk 0:02:36]} 18. c5 {[%clk 0:02:15]}  Rfd8 {[%clk 0:02:34]} 19. Be4 {[%clk 0:02:06]}  bxc5 {[%clk 0:02:27]} 20. dxc5 {[%clk 0:02:00]}  Nxe4 {[%clk 0:02:24]} 21. Qxe4 {[%clk 0:01:57]}  Rd5 {[%clk 0:02:24]} 22. b4 {[%clk 0:01:48]}  Rcd8 {[%clk 0:02:24]} 23. Qf3 {[%clk 0:01:41]}  Bf6 {[%clk 0:02:23]} 24. Re1 {[%clk 0:01:22]}  Ba6 {[%clk 0:02:16]} 25. Rac1 {[%clk 0:01:15]}  Qc8 {[%clk 0:02:08]} 26. Ng4 {[%clk 0:01:11]}  Bb2 {[%clk 0:01:58]} 27. Rc2 {[%clk 0:01:07]}  Rd3 {[%clk 0:01:51]} 28. Re3 {[%clk 0:01:00]}  Rd1+ {[%clk 0:01:47]} 29. Kg2 {[%clk 0:00:53]}  Bf1+ {[%clk 0:01:47]} 30. Kg1 {[%clk 0:00:52]}  Bh3+ {[%clk 0:01:46]} 0-1


[Site "https://www.chess.com"]

[Event "Titled Tuesday Blitz October 11 Late 2022"]
[White "Jean Louis, Marckens"]
[Black "Yurovskykh, Oleksandr"]
[WhiteFideId "11900270"]
[BlackFideId "14134020"]
[WhiteElo "2030"]
[BlackElo "2303"]
[Result "1-0"]
[Round "10"]
[TimeControl "180+1"]
[Date "2022.10.12"]
[WhiteClock "0:00:29"]
[BlackClock "0:00:10"]

1. d4 {[%clk 0:02:56]}  d5 {[%clk 0:02:53]} 2. c4 {[%clk 0:02:56]}  e6 {[%clk 0:02:51]} 3. Nc3 {[%clk 0:02:56]}  Nf6 {[%clk 0:02:51]} 4. Nf3 {[%clk 0:02:54]}  c5 {[%clk 0:02:51]} 5. dxc5 {[%clk 0:02:53]}  Bxc5 {[%clk 0:02:38]} 6. cxd5 {[%clk 0:02:54]}  Nxd5 {[%clk 0:02:32]} 7. Nxd5 {[%clk 0:02:52]}  exd5 {[%clk 0:02:33]} 8. a3 {[%clk 0:02:41]}  O-O {[%clk 0:02:19]} 9. e3 {[%clk 0:02:38]}  Nc6 {[%clk 0:02:19]} 10. b4 {[%clk 0:02:33]}  Bb6 {[%clk 0:02:13]} 11. Bb2 {[%clk 0:02:32]}  Bg4 {[%clk 0:02:12]} 12. Be2 {[%clk 0:02:32]}  a6 {[%clk 0:01:58]} 13. O-O {[%clk 0:02:32]}  Bc7 {[%clk 0:01:56]} 14. h3 {[%clk 0:02:30]}  Bh5 {[%clk 0:01:55]} 15. Nd4 {[%clk 0:02:21]}  Qd6 {[%clk 0:01:52]} 16. g3 {[%clk 0:02:18]}  Bxe2 {[%clk 0:01:48]} 17. Qxe2 {[%clk 0:02:17]}  Ne5 {[%clk 0:01:46]} 18. Rfd1 {[%clk 0:02:12]}  Nc4 {[%clk 0:01:38]} 19. Bc3 {[%clk 0:01:51]}  g6 {[%clk 0:01:22]} 20. Qg4 {[%clk 0:01:47]}  h5 {[%clk 0:01:04]} 21. Qf3 {[%clk 0:01:45]}  Rad8 {[%clk 0:01:00]} 22. Ne2 {[%clk 0:01:30]}  Qe6 {[%clk 0:00:50]} 23. Rd3 {[%clk 0:01:21]}  Ne5 {[%clk 0:00:46]} 24. Bxe5 {[%clk 0:01:20]}  Bxe5 {[%clk 0:00:47]} 25. Rad1 {[%clk 0:01:20]}  Qxh3 {[%clk 0:00:39]} 26. Rxd5 {[%clk 0:01:17]}  Rxd5 {[%clk 0:00:36]} 27. Qxd5 {[%clk 0:01:17]}  Re8 {[%clk 0:00:20]} 28. Qxb7 {[%clk 0:01:15]}  Qg4 {[%clk 0:00:19]} 29. Qd7 {[%clk 0:00:57]}  Re6 {[%clk 0:00:18]} 30. Nf4 {[%clk 0:00:50]}  Bxf4 {[%clk 0:00:17]} 31. Qd8+ {[%clk 0:00:41]}  Kh7 {[%clk 0:00:16]} 32. Rd4 {[%clk 0:00:37]}  Qf5 {[%clk 0:00:10]} 33. Rxf4 {[%clk 0:00:35]}  Qb1+ {[%clk 0:00:10]} 34. Kh2 {[%clk 0:00:36]}  Kg7 {[%clk 0:00:10]} 35. Qd4+ {[%clk 0:00:35]}  Kg8 {[%clk 0:00:10]} 36. Qd7 {[%clk 0:00:29]} 1-0


[Site "https://www.chess.com"]

[Event "Titled Tuesday Blitz October 11 Late 2022"]
[White "Le Goff, Ronan"]
[Black "Rosen, Eric"]
[WhiteFideId "612073"]
[BlackFideId "2032562"]
[WhiteElo "2510"]
[BlackElo "2614"]
[Result "1-0"]
[Round "10"]
[TimeControl "180+1"]
[Date "2022.10.12"]
[WhiteClock "0:00:02"]
[BlackClock "0:00:03"]

1. d4 {[%clk 0:03:00]}  Nf6 {[%clk 0:02:58]} 2. Nf3 {[%clk 0:02:51]}  d5 {[%clk 0:02:58]} 3. c4 {[%clk 0:02:47]}  e6 {[%clk 0:02:58]} 4. e3 {[%clk 0:02:44]}  a6 {[%clk 0:02:58]} 5. Nbd2 {[%clk 0:02:41]}  b6 {[%clk 0:02:52]} 6. cxd5 {[%clk 0:02:40]}  exd5 {[%clk 0:02:51]} 7. Bd3 {[%clk 0:02:39]}  Bd6 {[%clk 0:02:51]} 8. Ne5 {[%clk 0:02:37]}  c5 {[%clk 0:02:34]} 9. Ndf3 {[%clk 0:02:36]}  O-O {[%clk 0:02:28]} 10. O-O {[%clk 0:02:29]}  Bb7 {[%clk 0:02:25]} 11. b4 {[%clk 0:02:20]}  cxb4 {[%clk 0:02:14]} 12. a3 {[%clk 0:02:20]}  Qe7 {[%clk 0:02:02]} 13. axb4 {[%clk 0:02:17]}  Bxb4 {[%clk 0:02:03]} 14. Qb3 {[%clk 0:02:12]}  Nbd7 {[%clk 0:01:50]} 15. Ba3 {[%clk 0:02:09]}  Bxa3 {[%clk 0:01:47]} 16. Rxa3 {[%clk 0:02:06]}  b5 {[%clk 0:01:46]} 17. Rfa1 {[%clk 0:01:35]}  Nb6 {[%clk 0:01:44]} 18. R3a2 {[%clk 0:01:26]}  Nc4 {[%clk 0:01:43]} 19. h3 {[%clk 0:01:17]}  Rfc8 {[%clk 0:01:35]} 20. Qb1 {[%clk 0:01:09]}  g6 {[%clk 0:01:33]} 21. g3 {[%clk 0:00:57]}  Ne4 {[%clk 0:01:30]} 22. Bxe4 {[%clk 0:00:36]}  dxe4 {[%clk 0:01:30]} 23. Nxc4 {[%clk 0:00:34]}  exf3 {[%clk 0:01:10]} 24. Ne5 {[%clk 0:00:32]}  f6 {[%clk 0:01:05]} 25. Ng4 {[%clk 0:00:30]}  Kg7 {[%clk 0:00:33]} 26. d5 {[%clk 0:00:15]}  h5 {[%clk 0:00:26]} 27. Nh2 {[%clk 0:00:15]}  Bxd5 {[%clk 0:00:26]} 28. Rxa6 {[%clk 0:00:14]}  Rxa6 {[%clk 0:00:25]} 29. Rxa6 {[%clk 0:00:14]}  Qd7 {[%clk 0:00:25]} 30. e4 {[%clk 0:00:08]}  Bxe4 {[%clk 0:00:08]} 31. Qxe4 {[%clk 0:00:03]}  Rc1+ {[%clk 0:00:09]} 32. Nf1 {[%clk 0:00:03]}  Qxh3 {[%clk 0:00:05]} 33. Qe7+ {[%clk 0:00:02]}  Kh6 {[%clk 0:00:05]} 34. Qf8+ {[%clk 0:00:02]}  Kg5 {[%clk 0:00:05]} 35. Qxf6+ {[%clk 0:00:02]}  Kg4 {[%clk 0:00:03]} 36. Qf4# {[%clk 0:00:02]} 1-0


[Site "https://www.chess.com"]

[Event "Titled Tuesday Blitz October 11 Late 2022"]
[White "Leiva, Gianmarco"]
[Black "Buchenau, Frank"]
[WhiteFideId "3804399"]
[BlackFideId "4604350"]
[WhiteElo "2285"]
[BlackElo "2157"]
[Result "0-1"]
[Round "10"]
[TimeControl "180+1"]
[Date "2022.10.12"]
[WhiteClock "0:00:03"]
[BlackClock "0:00:09"]

1. e4 {[%clk 0:03:00]}  e6 {[%clk 0:02:59]} 2. d4 {[%clk 0:03:00]}  d5 {[%clk 0:02:58]} 3. Nd2 {[%clk 0:03:01]}  c5 {[%clk 0:02:57]} 4. exd5 {[%clk 0:03:00]}  Qxd5 {[%clk 0:02:56]} 5. Ngf3 {[%clk 0:03:01]}  cxd4 {[%clk 0:02:56]} 6. Bc4 {[%clk 0:03:02]}  Qd6 {[%clk 0:02:56]} 7. O-O {[%clk 0:03:02]}  Nf6 {[%clk 0:02:56]} 8. Re1 {[%clk 0:03:02]}  Nc6 {[%clk 0:02:56]} 9. Ne4 {[%clk 0:03:02]}  Nxe4 {[%clk 0:02:54]} 10. Rxe4 {[%clk 0:03:03]}  Be7 {[%clk 0:02:37]} 11. Nxd4 {[%clk 0:03:02]}  O-O {[%clk 0:02:19]} 12. Bf4 {[%clk 0:02:55]}  Qc5 {[%clk 0:02:12]} 13. Nb3 {[%clk 0:02:39]}  Qf5 {[%clk 0:02:07]} 14. Bd3 {[%clk 0:02:29]}  Rd8 {[%clk 0:01:56]} 15. Qe2 {[%clk 0:02:10]}  Bd7 {[%clk 0:01:28]} 16. Bc7 {[%clk 0:02:09]}  Rdc8 {[%clk 0:01:23]} 17. Rh4 {[%clk 0:01:56]}  Qg5 {[%clk 0:01:02]} 18. Bxh7+ {[%clk 0:01:56]}  Kf8 {[%clk 0:01:02]} 19. Bg3 {[%clk 0:01:19]}  g6 {[%clk 0:01:01]} 20. Rd1 {[%clk 0:00:49]}  Be8 {[%clk 0:00:56]} 21. Nd2 {[%clk 0:00:23]}  Rd8 {[%clk 0:00:51]} 22. Nf3 {[%clk 0:00:22]}  Rxd1+ {[%clk 0:00:50]} 23. Qxd1 {[%clk 0:00:22]}  Qd5 {[%clk 0:00:43]} 24. Qxd5 {[%clk 0:00:05]}  exd5 {[%clk 0:00:42]} 25. Bxg6 {[%clk 0:00:03]}  Bxh4 {[%clk 0:00:39]} 26. Bxh4 {[%clk 0:00:01]}  fxg6 {[%clk 0:00:39]} 27. Bg5 {[%clk 0:00:01]}  Bd7 {[%clk 0:00:35]} 28. Kf1 {[%clk 0:00:01]}  Re8 {[%clk 0:00:34]} 29. Bh6+ {[%clk 0:00:01]}  Kg8 {[%clk 0:00:34]} 30. Bd2 {[%clk 0:00:01]}  Bf5 {[%clk 0:00:33]} 31. c3 {[%clk 0:00:01]}  d4 {[%clk 0:00:33]} 32. cxd4 {[%clk 0:00:01]}  Bd3+ {[%clk 0:00:32]} 33. Kg1 {[%clk 0:00:02]}  Be4 {[%clk 0:00:32]} 34. Ng5 {[%clk 0:00:01]}  Nxd4 {[%clk 0:00:31]} 35. f3 {[%clk 0:00:01]}  Bd5 {[%clk 0:00:30]} 36. h4 {[%clk 0:00:02]}  Bxa2 {[%clk 0:00:28]} 37. Kh2 {[%clk 0:00:01]}  Re2 {[%clk 0:00:27]} 38. Bc3 {[%clk 0:00:02]}  Nb5 {[%clk 0:00:24]} 39. Bf6 {[%clk 0:00:02]}  a5 {[%clk 0:00:22]} 40. Kg3 {[%clk 0:00:02]}  a4 {[%clk 0:00:22]} 41. Nh3 {[%clk 0:00:03]}  Nd6 {[%clk 0:00:21]} 42. Nf4 {[%clk 0:00:03]}  Nf5+ {[%clk 0:00:21]} 43. Kh3 {[%clk 0:00:03]}  Rd2 {[%clk 0:00:20]} 44. Bc3 {[%clk 0:00:04]}  Rc2 {[%clk 0:00:19]} 45. Be5 {[%clk 0:00:02]}  Kf7 {[%clk 0:00:19]} 46. g4 {[%clk 0:00:02]}  Ne3 {[%clk 0:00:19]} 47. Nd3 {[%clk 0:00:02]}  Nc4 {[%clk 0:00:19]} 48. Bf4 {[%clk 0:00:01]}  Re2 {[%clk 0:00:19]} 49. Nc5 {[%clk 0:00:01]}  Nxb2 {[%clk 0:00:19]} 50. Nxb7 {[%clk 0:00:02]}  Nc4 {[%clk 0:00:18]} 51. Nc5 {[%clk 0:00:02]}  a3 {[%clk 0:00:18]} 52. Ne4 {[%clk 0:00:02]}  Bb1 {[%clk 0:00:18]} 53. Ng5+ {[%clk 0:00:02]}  Kg8 {[%clk 0:00:18]} 54. h5 {[%clk 0:00:02]}  a2 {[%clk 0:00:18]} 55. h6 {[%clk 0:00:01]}  a1=Q {[%clk 0:00:15]} 56. h7+ {[%clk 0:00:02]}  Kh8 {[%clk 0:00:16]} 57. Bd6 {[%clk 0:00:01]}  Nxd6 {[%clk 0:00:14]} 58. f4 {[%clk 0:00:01]}  Qc3+ {[%clk 0:00:13]} 59. Kh4 {[%clk 0:00:02]}  Rh2+ {[%clk 0:00:14]} 60. Nh3 {[%clk 0:00:02]}  Qf6+ {[%clk 0:00:14]} 61. Kg3 {[%clk 0:00:02]}  Rxh3+ {[%clk 0:00:13]} 62. Kxh3 {[%clk 0:00:02]}  Qxf4 {[%clk 0:00:13]} 63. Kh4 {[%clk 0:00:02]}  g5+ {[%clk 0:00:12]} 64. Kh5 {[%clk 0:00:03]}  Ne4 {[%clk 0:00:10]} 65. Kh6 {[%clk 0:00:02]}  Qxg4 {[%clk 0:00:09]} 66. Kg6 {[%clk 0:00:03]}  Ng3+ {[%clk 0:00:10]} 67. Kh6 {[%clk 0:00:03]}  Qh5# {[%clk 0:00:09]} 0-1


[Site "https://www.chess.com"]

[Event "Titled Tuesday Blitz October 11 Late 2022"]
[White "Matinian, Nikita"]
[Black "Reshetnikov, Alexey"]
[WhiteFideId "24129100"]
[BlackFideId "4162080"]
[WhiteElo "2422"]
[BlackElo "2502"]
[Result "1/2-1/2"]
[Round "10"]
[TimeControl "180+1"]
[Date "2022.10.11"]
[WhiteClock "0:00:18"]
[BlackClock "0:00:09"]

1. e4 {[%clk 0:03:00]}  c5 {[%clk 0:02:57]} 2. Nf3 {[%clk 0:03:00]}  d6 {[%clk 0:02:57]} 3. d4 {[%clk 0:03:01]}  cxd4 {[%clk 0:02:58]} 4. Nxd4 {[%clk 0:03:02]}  Nf6 {[%clk 0:02:59]} 5. Nc3 {[%clk 0:03:02]}  Nc6 {[%clk 0:02:59]} 6. Bg5 {[%clk 0:03:01]}  Bd7 {[%clk 0:02:59]} 7. Qd3 {[%clk 0:02:57]}  Rc8 {[%clk 0:02:54]} 8. Nxc6 {[%clk 0:02:55]}  Bxc6 {[%clk 0:02:48]} 9. O-O-O {[%clk 0:02:53]}  Qa5 {[%clk 0:02:44]} 10. Bxf6 {[%clk 0:02:54]}  gxf6 {[%clk 0:02:44]} 11. Kb1 {[%clk 0:02:54]}  e6 {[%clk 0:02:31]} 12. f4 {[%clk 0:02:50]}  Be7 {[%clk 0:02:26]} 13. Be2 {[%clk 0:02:48]}  h5 {[%clk 0:02:24]} 14. Qh3 {[%clk 0:02:43]}  b5 {[%clk 0:02:18]} 15. Bxh5 {[%clk 0:02:36]}  Kf8 {[%clk 0:02:11]} 16. Nd5 {[%clk 0:02:28]}  b4 {[%clk 0:01:55]} 17. Rhe1 {[%clk 0:01:44]}  Bb7 {[%clk 0:01:38]} 18. Nxe7 {[%clk 0:01:31]}  Rxh5 {[%clk 0:01:28]} 19. Qd3 {[%clk 0:01:31]}  Rd8 {[%clk 0:01:26]} 20. e5 {[%clk 0:01:19]}  Kxe7 {[%clk 0:01:18]} 21. exd6+ {[%clk 0:01:19]}  Kf8 {[%clk 0:01:15]} 22. Qd4 {[%clk 0:01:15]}  Bd5 {[%clk 0:00:57]} 23. b3 {[%clk 0:01:11]}  Rxd6 {[%clk 0:00:51]} 24. Qxf6 {[%clk 0:01:10]}  Ra6 {[%clk 0:00:35]} 25. a4 {[%clk 0:00:54]}  bxa3 {[%clk 0:00:33]} 26. c4 {[%clk 0:00:43]}  Qb4 {[%clk 0:00:16]} 27. cxd5 {[%clk 0:00:40]}  Qxb3+ {[%clk 0:00:16]} 28. Ka1 {[%clk 0:00:40]}  Qb2+ {[%clk 0:00:15]} 29. Qxb2 {[%clk 0:00:40]}  axb2+ {[%clk 0:00:16]} 30. Kxb2 {[%clk 0:00:41]}  Rxh2 {[%clk 0:00:16]} 31. Re2 {[%clk 0:00:35]}  exd5 {[%clk 0:00:16]} 32. Rxd5 {[%clk 0:00:35]}  Rg6 {[%clk 0:00:16]} 33. Rdd2 {[%clk 0:00:29]}  Rg3 {[%clk 0:00:14]} 34. Rf2 {[%clk 0:00:30]}  Kg7 {[%clk 0:00:14]} 35. f5 {[%clk 0:00:29]}  a5 {[%clk 0:00:14]} 36. f6+ {[%clk 0:00:29]}  Kg6 {[%clk 0:00:14]} 37. Rd8 {[%clk 0:00:29]}  Kh7 {[%clk 0:00:13]} 38. Rdd2 {[%clk 0:00:26]}  a4 {[%clk 0:00:13]} 39. Ka2 {[%clk 0:00:26]}  Kg6 {[%clk 0:00:12]} 40. Rd8 {[%clk 0:00:25]}  Kh7 {[%clk 0:00:12]} 41. Rf8 {[%clk 0:00:24]}  Rgxg2 {[%clk 0:00:10]} 42. Rxf7+ {[%clk 0:00:19]}  Kh6 {[%clk 0:00:06]} 43. Rxg2 {[%clk 0:00:17]}  Rxg2+ {[%clk 0:00:07]} 44. Ka3 {[%clk 0:00:18]}  Rf2 {[%clk 0:00:07]} 45. Kxa4 {[%clk 0:00:17]}  Kg6 {[%clk 0:00:08]} 46. Rb7 {[%clk 0:00:18]}  Rxf6 {[%clk 0:00:08]} 47. Ka5 {[%clk 0:00:17]}  Rf5+ {[%clk 0:00:08]} 48. Rb5 {[%clk 0:00:17]}  Rf6 {[%clk 0:00:09]} 49. Rb6 {[%clk 0:00:17]}  Rxb6 {[%clk 0:00:09]} 50. Kxb6 {[%clk 0:00:18]} 1/2-1/2


[Site "https://www.chess.com"]

[Event "Titled Tuesday Blitz October 11 Late 2022"]
[White "Mazurkiewicz, Michal"]
[Black "Rorrer, Grayson"]
[WhiteFideId "1124943"]
[BlackFideId "30944996"]
[WhiteElo "2063"]
[BlackElo "2130"]
[Result "0-1"]
[Round "10"]
[TimeControl "180+1"]
[Date "2022.10.11"]
[WhiteClock "0:00:02"]
[BlackClock "0:01:01"]

1. e4 {[%clk 0:02:58]}  c5 {[%clk 0:02:59]} 2. Nf3 {[%clk 0:02:59]}  d6 {[%clk 0:02:59]} 3. g3 {[%clk 0:02:59]}  Nf6 {[%clk 0:02:53]} 4. d3 {[%clk 0:02:58]}  g6 {[%clk 0:02:53]} 5. Bg2 {[%clk 0:02:59]}  Bg7 {[%clk 0:02:53]} 6. O-O {[%clk 0:02:59]}  O-O {[%clk 0:02:53]} 7. Re1 {[%clk 0:02:59]}  Nc6 {[%clk 0:02:53]} 8. e5 {[%clk 0:02:59]}  dxe5 {[%clk 0:02:53]} 9. Nxe5 {[%clk 0:03:00]}  Nxe5 {[%clk 0:02:53]} 10. Rxe5 {[%clk 0:03:01]}  Ng4 {[%clk 0:02:34]} 11. Re2 {[%clk 0:03:01]}  Ne5 {[%clk 0:02:32]} 12. Qe1 {[%clk 0:02:54]}  Nc6 {[%clk 0:02:24]} 13. Bxc6 {[%clk 0:02:10]}  bxc6 {[%clk 0:02:25]} 14. Rxe7 {[%clk 0:02:10]}  Be6 {[%clk 0:02:16]} 15. Bg5 {[%clk 0:01:58]}  Qd5 {[%clk 0:02:12]} 16. Bc1 {[%clk 0:00:56]}  Bf6 {[%clk 0:02:03]} 17. Nc3 {[%clk 0:00:35]}  Qf3 {[%clk 0:01:27]} 18. Rxe6 {[%clk 0:00:35]}  fxe6 {[%clk 0:01:26]} 19. Qxe6+ {[%clk 0:00:36]}  Kg7 {[%clk 0:01:27]} 20. Be3 {[%clk 0:00:35]}  Rae8 {[%clk 0:01:22]} 21. Qd6 {[%clk 0:00:12]}  Rxe3 {[%clk 0:01:02]} 22. fxe3 {[%clk 0:00:12]}  Qxe3+ {[%clk 0:01:03]} 23. Kg2 {[%clk 0:00:12]}  Bxc3 {[%clk 0:01:03]} 24. bxc3 {[%clk 0:00:05]}  Rf2+ {[%clk 0:00:59]} 25. Kh3 {[%clk 0:00:03]}  Qh6+ {[%clk 0:01:00]} 26. Kg4 {[%clk 0:00:02]}  Qh5# {[%clk 0:01:01]} 0-1


[Site "https://www.chess.com"]